fUST/lending_fUST_20250817
["ID","MTS","AMOUNT","RATE_DAILY","PERIOD"]
[379704281,1755377441535,-480.0,0.00020158,2]
[379704283,1755377441544,-480.0,0.00020158,2]
[379704285,1755377441554,-2299.76,0.00020158,2]
[379704287,1755377441563,-480.0,0.00020158,2]
[379704289,1755377441573,-11198.0,0.00020158,2]
[379704291,1755377441582,-460.0,0.00020158,2]
[379704293,1755377441591,-480.0,0.00020158,2]
[379704295,1755377441600,-480.0,0.00020158,2]
[379704297,1755377441609,-480.0,0.00020158,2]
[379704299,1755377441619,-480.0,0.00020158,2]
[379704301,1755377441628,-4358.2,0.00020158,2]
[379704302,1755377441637,-480.0,0.00020158,2]
[379704304,1755377441647,-480.0,0.00020158,2]
[379704307,1755377441656,-480.0,0.00020158,2]
[379704308,1755377441666,-480.0,0.00020158,2]
[379704310,1755377441675,-1115.72,0.00020158,2]
[379704312,1755377441685,-480.0,0.00020158,2]
[379704314,1755377441694,-480.0,0.00020158,2]
[379704316,1755377441703,-521.49,0.00020158,2]
[379704319,1755377441713,-480.0,0.00020158,2]
[379704321,1755377441727,-480.0,0.00020158,2]
[379704322,1755377441736,-3223.97,0.00020158,2]
[379704324,1755377441746,-480.0,0.00020158,2]
[379704326,1755377441755,-480.0,0.00020158,2]
[379704329,1755377441767,-480.0,0.00020158,2]
[379704342,1755377441777,-1480.48,0.00020158,2]
[379704345,1755377441907,-480.0,0.00020158,2]
[379704347,1755377441917,-480.0,0.00020158,2]
[379704349,1755377441927,-480.0,0.00020158,2]
[379704351,1755377441937,-480.0,0.00020158,2]
[379704353,1755377441946,-480.0,0.00020158,2]
[379704355,1755377441955,-786.28,0.00020158,2]
[379704357,1755377441964,-480.0,0.00020158,2]
[379704359,1755377441974,-498.61747842,0.00020158,2]
[379704361,1755377441984,-460.52798192,0.00020158,2]
[379704363,1755377441993,-420.83654943,0.00020158,2]
[379704365,1755377442003,-1203.56,0.00020158,2]
[379704367,1755377442012,-535.65,0.00020158,2]
[379704369,1755377442021,-480.0,0.00020158,2]
[379704371,1755377442032,-480.0,0.00020158,2]
[379704373,1755377442040,-480.0,0.00020158,2]
[379704375,1755377442049,-480.0,0.00020158,2]
[379704377,1755377442058,-773.99,0.00020158,2]
[379704379,1755377442067,-480.0,0.00020158,2]
[379704381,1755377442077,-480.0,0.00020158,2]
[379704383,1755377442086,-369.36431377,0.00020158,2]
[379704385,1755377442096,-461.02704623,0.00020158,2]
[379704387,1755377442105,-480.0,0.00020158,2]
[379704389,1755377442114,-2255.21,0.00020158,2]
[379704391,1755377442123,-401.42581393,0.00020158,2]
[379704393,1755377442133,-480.0,0.00020158,2]
[379704395,1755377442142,-480.0,0.00020158,2]
[379704396,1755377442151,-480.0,0.00020158,2]
[379704398,1755377442160,-460.0,0.00020158,2]
[379704400,1755377442170,-480.0,0.00020158,2]
[379704402,1755377442179,-480.0,0.00020158,2]
[379704404,1755377442189,-480.0,0.00020158,2]
[379704406,1755377442198,-163.8855355,0.00020158,2]
[379704408,1755377442207,-460.0,0.00020158,2]
[379704410,1755377442216,-480.0,0.00020158,2]
[379704412,1755377442226,-460.0,0.00020158,2]
[379704414,1755377442235,-460.82993709,0.00020158,2]
[379704416,1755377442246,-771.06,0.00020158,2]
[379704418,1755377442255,-480.0,0.00020158,2]
[379704420,1755377442264,-480.0,0.00020158,2]
[379704422,1755377442274,-848.97,0.00020158,2]
[379704424,1755377442283,-500.0,0.00020158,2]
[379704426,1755377442292,-500.0,0.00020158,2]
[379704428,1755377442302,-500.0,0.00020158,2]
[379704430,1755377442311,-500.0,0.00020158,2]
[379704432,1755377442320,-500.0,0.00020158,2]
[379704434,1755377442329,-500.0,0.00020158,2]
[379704436,1755377442339,-480.0,0.00020158,2]
[379704438,1755377442348,-480.0,0.00020158,2]
[379704440,1755377442358,-480.0,0.00020158,2]
[379704442,1755377442367,-419.82905163,0.00020158,2]
[379704444,1755377442376,-480.0,0.00020158,2]
[379704446,1755377442385,-480.0,0.00020158,2]
[379704448,1755377442394,-480.0,0.00020158,2]
[379704450,1755377442403,-480.0,0.00020158,2]
[379704452,1755377442412,-471.08329567,0.00020158,2]
[379704454,1755377442425,-280.59169717,0.00020158,2]
[379704456,1755377442434,-480.0,0.00020158,2]
[379704458,1755377442444,-480.0,0.00020158,2]
[379704460,1755377442453,-421.30257787,0.00020158,2]
[379704462,1755377442465,-480.0,0.00020158,2]
[379704464,1755377442479,-2604.03,0.00020158,2]
[379704466,1755377442494,-460.0,0.00020158,2]
[379704467,1755377442504,-512.48,0.00020158,2]
[379704468,1755377442514,-462.51504041,0.00020158,2]
[379704470,1755377442525,-1092.56,0.00020158,2]
[379704472,1755377442535,-506.65,0.00020158,2]
[379704474,1755377442545,-480.0,0.00020158,2]
[379704476,1755377442555,-480.0,0.00020158,2]
[379704478,1755377442564,-150.0,0.00020158,2]
[379704480,1755377442574,-783.0,0.00020158,2]
[379704482,1755377442583,-460.48522696,0.00020158,2]
[379704484,1755377442592,-480.0,0.00020158,2]
[379704486,1755377442601,-1096.81,0.00020158,2]
[379704488,1755377442611,-480.0,0.00020158,2]
[379704490,1755377442620,-588.94,0.00020158,2]
[379704492,1755377442629,-480.0,0.00020158,2]
[379704494,1755377442638,-480.0,0.00020158,2]
[379704496,1755377442647,-480.0,0.00020158,2]
[379704498,1755377442657,-572.9,0.00020158,2]
[379704500,1755377442666,-440.0,0.00020158,2]
[379704502,1755377442677,-480.0,0.00020158,2]
[379704504,1755377442686,-480.0,0.00020158,2]
[379704506,1755377442696,-685.01,0.00020158,2]
[379704508,1755377442705,-860.44,0.00020158,2]
[379704510,1755377442717,-480.0,0.00020158,2]
[379704512,1755377442728,-565.09,0.00020158,2]
[379704514,1755377442737,-480.0,0.00020158,2]
[379704516,1755377442747,-480.0,0.00020158,2]
[379704518,1755377442756,-615.56,0.00020158,2]
[379704520,1755377442765,-480.0,0.00020158,2]
[379704522,1755377442775,-500.0,0.00020158,2]
[379704524,1755377442785,-480.0,0.00020159,2]
[379704526,1755377442793,-480.0,0.00020159,2]
[379704528,1755377442803,-460.0,0.00020159,2]
[379704530,1755377442813,-980.18,0.00020159,2]
[379704532,1755377442823,-452.54075355,0.00020159,2]
[379704534,1755377442832,-480.0,0.00020159,2]
[379704536,1755377442841,-460.0,0.00020159,2]
[379704539,1755377442850,-480.0,0.00020159,2]
[379704542,1755377442859,-480.0,0.00020159,2]
[379704545,1755377442868,-480.0,0.00020159,2]
[379704548,1755377442878,-480.0,0.00020159,2]
[379704550,1755377442887,-480.0,0.00020159,2]
[379704552,1755377442897,-480.0,0.00020159,2]
[379704554,1755377442906,-460.0,0.00020159,2]
[379704556,1755377442916,-480.0,0.00020159,2]
[379704560,1755377442925,-480.0,0.00020159,2]
[379704562,1755377442935,-480.0,0.00020159,2]
[379704564,1755377442944,-480.0,0.00020159,2]
[379704566,1755377442955,-480.0,0.00020159,2]
[379704568,1755377442964,-480.0,0.00020159,2]
[379704570,1755377442973,-480.0,0.00020159,2]
[379704572,1755377442982,-460.4720173,0.00020159,2]
[379704574,1755377442993,-480.0,0.00020159,2]
[379704576,1755377443002,-480.0,0.00020159,2]
[379704579,1755377443011,-480.0,0.00020159,2]
[379704581,1755377443020,-480.0,0.00020159,2]
[379704583,1755377443029,-480.0,0.00020159,2]
[379704585,1755377443038,-480.0,0.00020159,2]
[379704587,1755377443048,-460.0,0.00020159,2]
[379704589,1755377443057,-480.0,0.00020159,2]
[379704591,1755377443066,-480.0,0.00020159,2]
[379704593,1755377443075,-480.0,0.00020159,2]
[379704595,1755377443085,-480.0,0.00020159,2]
[379704597,1755377443094,-480.0,0.00020159,2]
[379704599,1755377443103,-480.0,0.00020159,2]
[379704601,1755377443112,-480.0,0.00020159,2]
[379704603,1755377443122,-460.0,0.00020159,2]
[379704605,1755377443131,-480.0,0.00020159,2]
[379704607,1755377443140,-460.0,0.00020159,2]
[379704609,1755377443149,-460.0,0.00020159,2]
[379704611,1755377443159,-460.0,0.00020159,2]
[379704613,1755377443168,-480.0,0.00020159,2]
[379704615,1755377443177,-480.0,0.00020159,2]
[379704617,1755377443186,-402.99583468,0.00020159,2]
[379704619,1755377443195,-620.96,0.00020159,2]
[379704621,1755377443205,-480.0,0.00020159,2]
[379704623,1755377443214,-480.0,0.00020159,2]
[379704625,1755377443223,-460.30504465,0.00020159,2]
[379704627,1755377443233,-480.0,0.00020159,2]
[379704629,1755377443243,-480.0,0.00020159,2]
[379704631,1755377443252,-480.0,0.00020159,2]
[379704633,1755377443261,-480.0,0.00020159,2]
[379704635,1755377443270,-480.0,0.00020159,2]
[379704637,1755377443279,-480.0,0.00020159,2]
[379704639,1755377443288,-440.49616172,0.00020159,2]
[379704641,1755377443297,-480.0,0.00020159,2]
[379704643,1755377443306,-480.0,0.00020159,2]
[379704645,1755377443316,-460.0,0.00020159,2]
[379704647,1755377443325,-480.0,0.00020159,2]
[379704649,1755377443334,-480.0,0.00020159,2]
[379704651,1755377443343,-735.06,0.00020159,2]
[379704653,1755377443353,-480.0,0.00020159,2]
[379704655,1755377443362,-480.0,0.00020159,2]
[379704657,1755377443371,-480.0,0.00020159,2]
[379704659,1755377443380,-480.0,0.00020159,2]
[379704661,1755377443389,-652.24,0.00020159,2]
[379704663,1755377443398,-480.0,0.00020159,2]
[379704665,1755377443407,-480.0,0.00020159,2]
[379704666,1755377443416,-508.6,0.00020159,2]
[379704668,1755377443426,-500.0,0.00020159,2]
[379704672,1755377443435,-500.0,0.00020159,2]
[379704676,1755377443444,-151.0,0.00020159,2]
[379704679,1755377443457,-480.0,0.00020159,2]
[379704683,1755377443470,-151.0,0.00020159,2]
[379704686,1755377443479,-480.0,0.00020159,2]
[379704688,1755377443489,-480.0,0.00020159,2]
[379704690,1755377443499,-480.0,0.00020159,2]
[379704693,1755377443512,-480.0,0.00020159,2]
[379704695,1755377443522,-480.0,0.00020159,2]
[379704697,1755377443531,-480.0,0.00020159,2]
[379704699,1755377443541,-480.0,0.00020159,2]
[379704701,1755377443550,-464.63339883,0.00020159,2]
[379704703,1755377443560,-532.3722477,0.00020159,2]
[379704705,1755377443569,-480.0,0.00020159,2]
[379704707,1755377443578,-480.0,0.00020159,2]
[379704709,1755377443587,-480.0,0.00020159,2]
[379704711,1755377443596,-500.0,0.00020159,2]
[379704713,1755377443605,-480.0,0.00020159,2]
[379704716,1755377443614,-480.0,0.00020159,2]
[379704719,1755377443623,-480.0,0.00020159,2]
[379704722,1755377443632,-480.0,0.00020159,2]
[379704724,1755377443641,-480.0,0.00020159,2]
[379704725,1755377443651,-480.0,0.00020159,2]
[379704728,1755377443660,-480.0,0.00020159,2]
[379704730,1755377443670,-480.0,0.00020159,2]
[379704731,1755377443679,-480.0,0.00020159,2]
[379704733,1755377443688,-480.0,0.00020159,2]
[379704735,1755377443698,-480.0,0.00020159,2]
[379704737,1755377443707,-480.0,0.00020159,2]
[379704739,1755377443721,-700.53,0.00020159,2]
[379704741,1755377443731,-480.0,0.00020159,2]
[379704743,1755377443740,-480.0,0.00020159,2]
[379704745,1755377443750,-460.0,0.00020159,2]
[379704747,1755377443761,-480.0,0.00020159,2]
[379704749,1755377443771,-480.0,0.00020159,2]
[379704751,1755377443780,-480.0,0.00020159,2]
[379704753,1755377443790,-480.0,0.00020159,2]
[379704755,1755377443799,-480.0,0.00020159,2]
[379704757,1755377443808,-887.43,0.00020159,2]
[379704759,1755377443818,-480.0,0.00020159,2]
[379704761,1755377443827,-691.63,0.00020159,2]
[379704763,1755377443836,-480.0,0.00020159,2]
[379704765,1755377443845,-513.19,0.00020159,2]
[379704767,1755377443854,-151.0,0.00020159,2]
[379704769,1755377443863,-211.27325009,0.00020159,2]
[379704771,1755377443872,-500.0,0.00020159,2]
[379704773,1755377443882,-151.0,0.00020159,2]
[379704775,1755377443891,-151.0,0.00020159,2]
[379704777,1755377443901,-480.0,0.00020159,2]
[379704779,1755377443910,-246.62602086,0.00020159,2]
[379704781,1755377443919,-851.69,0.00020159,2]
[379704783,1755377443929,-480.0,0.00020159,2]
[379704785,1755377443938,-480.0,0.00020159,2]
[379704787,1755377443947,-480.0,0.00020159,2]
[379704789,1755377443957,-480.0,0.00020159,2]
[379704791,1755377443967,-480.0,0.00020159,2]
[379704793,1755377443977,-480.0,0.00020159,2]
[379704795,1755377443986,-603.38,0.00020159,2]
[379704797,1755377443997,-480.0,0.00020159,2]
[379704799,1755377444006,-480.0,0.00020159,2]
[379704801,1755377444016,-448.17852833,0.00020159,2]
[379704803,1755377444026,-10981.53,0.00020159,2]
[379704805,1755377444035,-480.0,0.00020159,2]
[379704807,1755377444045,-151.0,0.00020159,2]
[379704809,1755377444054,-151.0,0.00020159,2]
[379704811,1755377444064,-480.0,0.00020159,2]
[379704813,1755377444073,-427.46366629,0.00020159,2]
[379704815,1755377444084,-480.0,0.00020159,2]
[379704816,1755377444093,-480.0,0.00020159,2]
[379704817,1755377444102,-480.0,0.00020159,2]
[379704818,1755377444111,-1711.57,0.00020159,2]
[379704819,1755377444120,-480.0,0.00020159,2]
[379704820,1755377444129,-480.0,0.00020159,2]
[379704821,1755377444138,-480.0,0.00020159,2]
[379704822,1755377444147,-480.0,0.00020159,2]
[379704823,1755377444156,-357.20006894,0.00020159,2]
[379704824,1755377444165,-1936.76,0.00020159,2]
[379704825,1755377444175,-662.85,0.00020159,2]
[379704826,1755377444185,-201.04585953,0.00020159,2]
[379704827,1755377444313,-151.0,0.00020159,2]
[379704828,1755377444324,-480.0,0.00020159,2]
[379704829,1755377444333,-151.0,0.00020159,2]
[379704830,1755377444342,-151.0,0.00020159,2]
[379704831,1755377444352,-480.0,0.00020159,2]
[379704832,1755377444361,-722.48,0.00020159,2]
[379704833,1755377444371,-198.0,0.00020159,2]
[379704834,1755377444380,-480.0,0.00020159,2]
[379704835,1755377444389,-460.73169431,0.00020159,2]
[379704836,1755377444398,-480.0,0.00020159,2]
[379704838,1755377444408,-480.0,0.00020159,2]
[379704839,1755377444417,-883.69,0.00020159,2]
[379704841,1755377444427,-480.0,0.00020159,2]
[379704844,1755377444442,-480.0,0.00020159,2]
[379704845,1755377444455,-1100.0,0.00020159,2]
[379704847,1755377444465,-480.0,0.00020159,2]
[379704849,1755377444474,-151.44429891,0.00020159,2]
[379704851,1755377444484,-151.0,0.00020159,2]
[379704853,1755377444495,-151.0,0.00020159,2]
[379704855,1755377444504,-480.0,0.00020159,2]
[379704857,1755377444513,-151.0,0.00020159,2]
[379704859,1755377444522,-151.0,0.00020159,2]
[379704861,1755377444532,-274.48701892,0.00020159,2]
[379704863,1755377444541,-151.0,0.00020159,2]
[379704865,1755377444551,-259.9928,0.00020159,2]
[379704867,1755377444560,-251.13234573,0.00020159,2]
[379704869,1755377444569,-480.0,0.00020159,2]
[379704871,1755377444579,-441.63675354,0.00020159,2]
[379704873,1755377444588,-4000.54,0.00020159,2]
[379704875,1755377444597,-480.0,0.00020159,2]
[379704877,1755377444607,-460.81391095,0.00020159,2]
[379704879,1755377444616,-480.0,0.00020159,2]
[379704881,1755377444626,-480.0,0.00020159,2]
[379704883,1755377444635,-480.0,0.00020159,2]
[379704885,1755377444645,-464.41522356,0.00020159,2]
[379704887,1755377444654,-480.0,0.00020159,2]
[379704889,1755377444663,-1288.62,0.00020159,2]
[379704891,1755377444673,-1288.62,0.00020159,2]
[379704893,1755377444683,-1288.62,0.00020159,2]
[379704895,1755377444692,-8437.53,0.00020159,2]
[379704897,1755377444701,-617.19,0.00020159,2]
[379704899,1755377444711,-617.19,0.00020159,2]
[379704901,1755377444723,-617.19,0.00020159,2]
[379704903,1755377444733,-480.0,0.00020159,2]
[379704905,1755377444742,-480.0,0.00020159,2]
[379704907,1755377444752,-151.0,0.00020159,2]
[379704909,1755377444761,-151.0,0.00020159,2]
[379704911,1755377444771,-500.0,0.00020159,2]
[379704913,1755377444780,-480.0,0.00020159,2]
[379704915,1755377444790,-151.0,0.00020159,2]
[379704917,1755377444799,-440.0,0.00020159,2]
[379704919,1755377444808,-480.0,0.00020159,2]
[379704921,1755377444818,-480.0,0.00020159,2]
[379704922,1755377444828,-460.0,0.00020159,2]
[379704924,1755377444837,-480.0,0.00020159,2]
[379704926,1755377444847,-151.0,0.00020159,2]
[379704928,1755377444857,-526.04,0.00020159,2]
[379704930,1755377444866,-480.0,0.00020159,2]
[379704932,1755377444876,-4308.84,0.00020159,2]
[379704934,1755377444885,-480.0,0.00020159,2]
[379704936,1755377444895,-460.0,0.00020159,2]
[379704938,1755377444905,-342.20632826,0.00020159,2]
[379704940,1755377444914,-480.0,0.00020159,2]
[379704942,1755377444924,-1553.89,0.00020159,2]
[379704944,1755377444934,-491.93,0.00020159,2]
[379704946,1755377444943,-199.5493,0.00020159,2]
[379704948,1755377444953,-1423.97,0.00020159,2]
[379704950,1755377444962,-480.0,0.00020159,2]
[379704952,1755377444971,-480.0,0.00020159,2]
[379704954,1755377444981,-1150.12,0.00020159,2]
[379704956,1755377444991,-500.0,0.0002016,2]
[379704958,1755377445001,-500.0,0.0002016,2]
[379704960,1755377445011,-500.0,0.0002016,2]
[379704962,1755377445020,-500.0,0.0002016,2]
[379704964,1755377445029,-500.0,0.0002016,2]
[379704966,1755377445039,-500.0,0.0002016,2]
[379704968,1755377445048,-168.26462039,0.0002016,2]
[379704970,1755377445057,-515.9,0.0002016,2]
[379704972,1755377445066,-1288.62,0.0002016,2]
[379704974,1755377445075,-1288.62,0.0002016,2]
[379704976,1755377445084,-1288.62,0.0002016,2]
[379704978,1755377445093,-1288.62,0.0002016,2]
[379704980,1755377445102,-1288.62,0.0002016,2]
[379704982,1755377445111,-1288.62,0.0002016,2]
[379704984,1755377445120,-617.19,0.0002016,2]
[379704986,1755377445129,-617.19,0.0002016,2]
[379704988,1755377445139,-617.19,0.0002016,2]
[379704990,1755377445148,-617.19,0.0002016,2]
[379704992,1755377445157,-617.19,0.0002016,2]
[379704994,1755377445167,-617.19,0.0002016,2]
[379704996,1755377445176,-460.0,0.00020161,2]
[379704998,1755377445185,-480.0,0.00020161,2]
[379705000,1755377445195,-460.0,0.00020161,2]
[379705001,1755377445204,-480.0,0.00020161,2]
[379705004,1755377445214,-480.0,0.00020161,2]
[379705005,1755377445223,-243.55038834,0.00020161,2]
[379705007,1755377445233,-480.0,0.00020161,2]
[379705009,1755377445242,-1288.62,0.00020161,2]
[379705011,1755377445252,-617.19,0.00020161,2]
[379705013,1755377445261,-206.0,0.0002017,2]
[379705015,1755377445271,-500.0,0.00020173,2]
[379705017,1755377445281,-500.0,0.00020173,2]
[379705019,1755377445290,-500.0,0.00020173,2]
[379705021,1755377445299,-414.954263,0.00020187,2]
[379705023,1755377445308,-420.6291706,0.00020195,2]
[379705025,1755377445317,-151.0,0.000202,4]
[379705027,1755377445326,-151.0,0.000202,3]
[379705029,1755377445335,-168.0,0.00020206,2]
[379705031,1755377445344,-1288.62,0.0002026,2]
[379705033,1755377445353,-617.19,0.0002026,2]
[379705035,1755377445363,-151.0,0.00020261,2]
[379705037,1755377445372,-151.0,0.00020261,2]
[379705039,1755377445381,-151.0,0.00020261,2]
[379705042,1755377445398,-226.140573,0.00020261,2]
[379705044,1755377445410,-226.140573,0.00020261,2]
[379705047,1755377445423,-247.378836,0.00020261,2]
[379705049,1755377445437,-247.378836,0.00020261,2]
[379705051,1755377445451,-151.0,0.00020261,2]
[379705054,1755377445467,-151.0,0.00020261,2]
[379705056,1755377445480,-2003.287501,0.00020261,2]
[379705058,1755377445493,-2003.287501,0.00020261,2]
[379705061,1755377445505,-515.9,0.00020261,2]
[379705063,1755377445518,-1288.62,0.00020261,2]
[379705065,1755377445532,-617.19,0.00020261,2]
[379705068,1755377445547,-332.0,0.00020272,2]
[379705070,1755377445562,-151.0,0.000203,3]
[379705073,1755377445575,-151.0,0.000203,4]
[379705075,1755377445589,-153.0,0.000203,2]
[379705078,1755377445604,-153.0,0.000203,2]
[379705080,1755377445617,-153.0,0.000203,2]
[379705082,1755377445630,-153.0,0.000203,2]
[379705085,1755377445643,-161.4346216,0.000203,2]
[379705087,1755377445658,-153.0,0.000203,2]
[379705089,1755377445670,-153.0,0.000203,2]
[379705092,1755377445683,-168.0,0.00020314,2]
[379705094,1755377445695,-302.13949498,0.00020332,2]
[379705096,1755377445708,-420.6291706,0.00020332,2]
[379705099,1755377445729,-151.0,0.000204,3]
[379705101,1755377445741,-151.0,0.000204,3]
[379705103,1755377445753,-515.9,0.00020431,2]
[379705105,1755377445770,-480.0,0.00020431,2]
[379705108,1755377445783,-226.63855974,0.00020431,2]
[379705110,1755377445795,-714.33,0.00020431,2]
[379705113,1755377445807,-1057.45,0.00020431,2]
[379705116,1755377445819,-3247.78,0.00020431,2]
[379705119,1755377445832,-460.0,0.00020431,2]
[379705121,1755377445844,-480.0,0.00020431,2]
[379705123,1755377445856,-648.89,0.00020431,2]
[379705125,1755377445868,-460.0,0.00020431,2]
[379705127,1755377445880,-8883.04112698,0.00020432,2]
[379705130,1755377445893,-440.38702133,0.00020432,2]
[379705132,1755377445904,-653.28,0.00020432,2]
[379705134,1755377445917,-480.0,0.00020432,2]
[379705136,1755377445929,-480.0,0.00020432,2]
[379705138,1755377445941,-480.0,0.00020432,2]
[379705141,1755377445953,-480.0,0.00020432,2]
[379705143,1755377445965,-338.10959899,0.00020432,2]
[379705145,1755377445977,-480.0,0.00020432,2]
[379705148,1755377445991,-480.0,0.00020432,2]
[379705150,1755377446004,-480.0,0.00020432,2]
[379705152,1755377446016,-480.0,0.00020432,2]
[379705154,1755377446028,-480.0,0.00020432,2]
[379705157,1755377446040,-480.0,0.00020432,2]
[379705159,1755377446052,-1272.27,0.00020432,2]
[379705161,1755377446064,-480.0,0.00020432,2]
[379705163,1755377446075,-480.0,0.00020432,2]
[379705166,1755377446088,-460.0,0.00020432,2]
[379705168,1755377446100,-480.0,0.00020432,2]
[379705170,1755377446111,-1581.69,0.00020432,2]
[379705172,1755377446123,-480.0,0.00020432,2]
[379705174,1755377446136,-480.0,0.00020432,2]
[379705177,1755377446148,-624.61,0.00020432,2]
[379705179,1755377446160,-694.75,0.00020432,2]
[379705181,1755377446173,-480.0,0.00020432,2]
[379705184,1755377446184,-480.0,0.00020432,2]
[379705186,1755377446197,-480.0,0.00020432,2]
[379705188,1755377446209,-480.0,0.00020432,2]
[379705190,1755377446221,-541.32,0.00020432,2]
[379705193,1755377446232,-400.0,0.00020432,2]
[379705195,1755377446245,-1710.57,0.00020432,2]
[379705197,1755377446256,-498.82,0.00020432,2]
[379705199,1755377446268,-480.0,0.00020432,2]
[379705201,1755377446281,-631.87,0.00020432,2]
[379705204,1755377446293,-480.0,0.00020432,2]
[379705206,1755377446306,-480.0,0.00020432,2]
[379705208,1755377446318,-480.0,0.00020432,2]
[379705211,1755377446331,-480.0,0.00020432,2]
[379705213,1755377446343,-480.0,0.00020432,2]
[379705215,1755377446356,-421.63691744,0.00020432,2]
[379705218,1755377446368,-480.0,0.00020432,2]
[379705220,1755377446381,-460.0,0.00020432,2]
[379705222,1755377446393,-719.38,0.00020432,2]
[379705224,1755377446406,-873.1,0.00020432,2]
[379705227,1755377446418,-480.0,0.00020432,2]
[379705229,1755377446430,-480.0,0.00020432,2]
[379705231,1755377446442,-480.0,0.00020432,2]
[379705233,1755377446454,-480.0,0.00020432,2]
[379705236,1755377446466,-1231.06,0.00020432,2]
[379705238,1755377446480,-480.0,0.00020432,2]
[379705240,1755377446492,-480.0,0.00020432,2]
[379705243,1755377446505,-480.0,0.00020432,2]
[379705245,1755377446517,-480.0,0.00020432,2]
[379705247,1755377446530,-480.0,0.00020432,2]
[379705249,1755377446542,-1046.39,0.00020432,2]
[379705252,1755377446555,-440.0,0.00020432,2]
[379705254,1755377446568,-480.0,0.00020432,2]
[379705256,1755377446580,-480.0,0.00020432,2]
[379705259,1755377446592,-480.0,0.00020432,2]
[379705261,1755377446604,-577.35,0.00020432,2]
[379705263,1755377446616,-480.0,0.00020432,2]
[379705265,1755377446628,-480.0,0.00020432,2]
[379705268,1755377446640,-480.0,0.00020432,2]
[379705270,1755377446652,-501.27,0.00020432,2]
[379705272,1755377446662,-480.0,0.00020432,2]
[379705274,1755377446671,-480.0,0.00020432,2]
[379705276,1755377446681,-480.0,0.00020432,2]
[379705278,1755377446691,-480.0,0.00020432,2]
[379705280,1755377446701,-480.0,0.00020432,2]
[379705282,1755377446710,-480.0,0.00020432,2]
[379705284,1755377446724,-518.83065946,0.00020432,2]
[379705286,1755377446734,-480.0,0.00020432,2]
[379705298,1755377446951,-480.0,0.00020432,2]
[379705301,1755377446974,-480.0,0.00020432,2]
[379705304,1755377446990,-480.0,0.00020432,2]
[379705306,1755377447000,-801.97,0.00020432,2]
[379705308,1755377447009,-1220.35,0.00020432,2]
[379705310,1755377447019,-480.0,0.00020432,2]
[379705312,1755377447028,-1111.61,0.00020432,2]
[379705314,1755377447037,-2109.62,0.00020432,2]
[379705316,1755377447046,-480.0,0.00020432,2]
[379705318,1755377447055,-480.0,0.00020432,2]
[379705320,1755377447064,-1095.32,0.00020432,2]
[379705322,1755377447073,-480.0,0.00020432,2]
[379705324,1755377447082,-460.0,0.00020432,2]